[Event "Ebbe cup 42"]
[Site "Schackcentrum, Vegatan 20, Gothenburg, Sweden"]
[Date "2022.02.13"]
[Round "5.3"]
[White "Bjureblad, Martin"]
[Black "Lindholm, Marcus"]
[Result "0-1"]
[TimeControl "90 minutes for 40 moves + 15 minutes for the rest of the game + 30 seconds per move from move one."]
[WhiteFideId "1717928"]
[BlackFideId "1743473"]
[WhiteElo "1466"]
[BlackElo "1463"]

1. e4 {[%clk 01:30:51]} {[%emt 00:00:09]} c5 {[%clk 01:30:54]} {[%emt
00:00:07]} 2. Nf3 {[%clk 01:31:05]} {[%emt 00:00:15]} e6 {[%clk 01:31:07]}
{[%emt 00:00:17]} 3. Nc3 {[%clk 01:31:05]} {[%emt 00:00:30]} a6 {[%clk
01:30:48]} {[%emt 00:00:50]} 4. d4 {[%clk 01:29:45]} {[%emt 00:01:49]} cxd4
{[%clk 01:31:11]} {[%emt 00:00:07]} 5. Nxd4 {[%clk 01:29:29]} {[%emt 00:00:46]}
Qc7 {[%clk 01:31:31]} {[%emt 00:00:10]} 6. Be2 {[%clk 01:28:38]} {[%emt
00:01:21]} Nf6 {[%clk 01:31:35]} {[%emt 00:00:26]} 7. O-O {[%clk 01:26:11]}
{[%emt 00:02:56]} Bb4 {[%clk 01:31:10]} {[%emt 00:00:55]} 8. Qd3 {[%clk
01:25:34]} {[%emt 00:01:07]} d6 {[%clk 01:30:06]} {[%emt 00:01:34]} 9. Bd2
{[%clk 01:25:16]} {[%emt 00:00:47]} Nbd7 {[%clk 01:29:49]} {[%emt 00:00:49]} 10.
Bf3 {[%clk 01:16:00]} {[%emt 00:09:46]} Ne5 {[%clk 01:23:02]} {[%emt 00:07:17]}
11. Qe2 {[%clk 01:15:07]} {[%emt 00:01:22]} Bd7 {[%clk 01:19:09]} {[%emt
00:04:23]} 12. Qd1 {[%clk 01:11:40]} {[%emt 00:03:56]} Nc4 {[%clk 01:13:50]}
{[%emt 00:05:51]} 13. Rb1 {[%clk 01:09:23]} {[%emt 00:02:46]} Rb8 {[%clk
01:11:21]} {[%emt 00:03:00]} 14. Re1 {[%clk 01:06:22]} {[%emt 00:03:29]} Nxb2
{[%clk 01:05:45]} {[%emt 00:06:08]} 15. Rxb2 {[%clk 01:02:15]} {[%emt
00:04:36]} Bxc3 {[%clk 01:06:09]} {[%emt 00:00:07]} 16. Bxc3 {[%clk 01:01:29]}
{[%emt 00:01:15]} Qxc3 {[%clk 01:06:30]} {[%emt 00:00:10]} 17. Rb3 {[%clk
01:01:07]} {[%emt 00:00:51]} Qc7 {[%clk 01:05:56]} {[%emt 00:01:04]} 18. Qd3
{[%clk 00:58:38]} {[%emt 00:02:59]} O-O {[%clk 01:04:27]} {[%emt 00:01:59]} 19.
Reb1 {[%clk 00:57:56]} {[%emt 00:01:12]} b5 {[%clk 01:03:56]} {[%emt 00:01:01]}
20. c3 {[%clk 00:56:00]} {[%emt 00:02:25]} e5 {[%clk 01:00:42]} {[%emt
00:03:45]} 21. Ne2 {[%clk 00:55:12]} {[%emt 00:01:19]} Be6 {[%clk 00:59:47]}
{[%emt 00:01:24]} 22. R3b2 {[%clk 00:55:01]} {[%emt 00:00:40]} Rfc8 {[%clk
00:58:20]} {[%emt 00:01:59]} 23. Rd1 {[%clk 00:52:41]} {[%emt 00:02:48]} Rb6
{[%clk 00:57:45]} {[%emt 00:01:07]} 24. Rc1 {[%clk 00:30:10]} {[%emt 00:23:00]}
Rc6 {[%clk 00:56:30]} {[%emt 00:01:46]} 25. h3 {[%clk 00:26:53]} {[%emt
00:03:46]} Bc4 {[%clk 00:56:24]} {[%emt 00:00:36]} 26. Qe3 {[%clk 00:25:38]}
{[%emt 00:01:45]} Bxe2 {[%clk 00:56:31]} {[%emt 00:00:23]} 27. Qxe2 {[%clk
00:22:52]} {[%emt 00:03:16]} Rxc3 {[%clk 00:56:51]} {[%emt 00:00:11]} 28. Rd1
{[%clk 00:21:33]} {[%emt 00:01:47]} Rc1 {[%clk 00:55:51]} {[%emt 00:01:31]} 29.
Rbd2 {[%clk 00:20:58]} {[%emt 00:01:04]} h6 {[%clk 00:55:12]} {[%emt 00:01:10]}
30. Kh2 {[%clk 00:21:10]} {[%emt 00:00:18]} Rxd1 {[%clk 00:54:57]} {[%emt
00:00:46]} 31. Qxd1 {[%clk 00:20:53]} {[%emt 00:00:46]} Rd8 {[%clk 00:53:22]}
{[%emt 00:02:03]} 32. Qb3 {[%clk 00:20:33]} {[%emt 00:00:52]} Qc4 {[%clk
00:46:06]} {[%emt 00:07:46]} 33. Qe3 {[%clk 00:19:42]} {[%emt 00:01:21]} Nh7
{[%clk 00:44:16]} {[%emt 00:02:20]} 34. Qb6 {[%clk 00:19:33]} {[%emt 00:00:39]}
Qc8 {[%clk 00:43:11]} {[%emt 00:01:34]} 35. Bg4 {[%clk 00:18:50]} {[%emt
00:01:13]} Qb8 {[%clk 00:40:08]} {[%emt 00:03:32]} 36. Qxa6 {[%clk 00:17:45]}
{[%emt 00:01:37]} Nf6 {[%clk 00:39:36]} {[%emt 00:01:03]} 37. Bf3 {[%clk
00:17:04]} {[%emt 00:01:09]} d5 {[%clk 00:39:47]} {[%emt 00:00:19]} 38. Qa5
{[%clk 00:16:11]} {[%emt 00:01:23]} Rd7 {[%clk 00:38:33]} {[%emt 00:01:41]} 39.
g3 {[%clk 00:15:51]} {[%emt 00:00:53]} Ra7 {[%clk 00:38:09]} {[%emt 00:00:53]}
40. Qb4 {[%clk 00:12:28]} {[%emt 00:03:53]} Ra4 {[%clk 00:37:45]} {[%emt
00:00:55]} 41. Qe7 {[%clk 00:11:28]} {[%emt 00:01:30]} d4 {[%clk 00:33:22]}
{[%emt 00:04:52]} 42. Rb2 {[%clk 00:07:38]} {[%emt 00:04:21]} d3 {[%clk
00:30:07]} {[%emt 00:03:45]} 43. Bd1 {[%clk 00:03:57]} {[%emt 00:04:11]} Rxe4
{[%clk 00:29:52]} {[%emt 00:00:45]} 44. Bb3 {[%clk 00:03:36]} {[%emt 00:00:50]}
Qf8 {[%clk 00:28:19]} {[%emt 00:02:02]} 45. Qxf8+ {[%clk 00:14:13]} {[%emt
00:04:55]} Kxf8 {[%clk 00:43:30]} {[%emt 00:00:19]} 46. Bd1 {[%clk 00:13:45]}
{[%emt 00:00:56]} b4 {[%clk 00:43:36]} {[%emt 00:00:26]} 47. Kg2 {[%clk
00:13:35]} {[%emt 00:00:39]} Re1 {[%clk 00:43:06]} {[%emt 00:01:00]} 48. Ba4
{[%clk 00:09:41]} {[%emt 00:09:01]} Nd5 {[%clk 00:42:44]} {[%emt 00:00:53]} 49.
Kf3 {[%clk 00:09:11]} {[%emt 00:01:01]} e4+ {[%clk 00:42:50]} {[%emt 00:00:22]}
50. Kg4 {[%clk 00:07:43]} {[%emt 00:03:42]} Re2 {[%clk 00:44:47]} {[%emt
00:00:29]} 51. Rb1 {[%clk 00:01:42]} {[%emt 00:06:31]} Rxf2 {[%clk 00:45:07]}
{[%emt 00:00:11]} 52. Kh4 {[%clk 00:01:39]} {[%emt 00:00:33]} g5+ {[%clk
00:45:06]} {[%emt 00:00:30]} 53. Kg4 {[%clk 00:01:51]} {[%emt 00:00:18]} Nf6#
{[%clk 00:45:31]} {[%emt 00:00:07]} 0-1

[Event "Ebbe cup 42"]
[Site "Schackcentrum, Vegatan 20, Gothenburg, Sweden"]
[Date "2022.02.13"]
[Round "5.5"]
[White "Eldh, Hjalmar"]
[Black "Granath, Andreas"]
[Result "0-1"]
[TimeControl "90 minutes for 40 moves + 15 minutes for the rest of the game + 30 seconds per move from move one."]
[WhiteFideId "1767968"]
[BlackFideId "1743333"]
[WhiteElo "1704"]
[BlackElo "1591"]

1. e4 {[%clk 01:30:56]} {[%emt 00:00:02]} c6 {[%clk 01:30:56]} {[%emt
00:00:04]} 2. d4 {[%clk 01:31:22]} {[%emt 00:00:05]} d5 {[%clk 01:31:22]}
{[%emt 00:00:04]} 3. f3 {[%clk 01:31:47]} {[%emt 00:00:05]} Qb6 {[%clk
01:31:48]} {[%emt 00:00:04]} 4. Nc3 {[%clk 01:32:08]} {[%emt 00:00:09]} dxe4
{[%clk 01:32:13]} {[%emt 00:00:05]} 5. Bc4 {[%clk 01:32:28]} {[%emt 00:00:10]}
Nf6 {[%clk 01:31:49]} {[%emt 00:00:53]} 6. fxe4 {[%clk 01:32:38]} {[%emt
00:00:20]} Bg4 {[%clk 01:29:55]} {[%emt 00:02:23]} 7. Nf3 {[%clk 01:32:21]}
{[%emt 00:00:47]} e6 {[%clk 01:26:40]} {[%emt 00:03:44]} 8. O-O {[%clk
01:31:20]} {[%emt 00:01:32]} Be7 {[%clk 01:23:07]} {[%emt 00:04:03]} 9. Qd3
{[%clk 01:31:32]} {[%emt 00:00:18]} O-O {[%clk 01:22:39]} {[%emt 00:00:57]} 10.
Be3 {[%clk 01:30:03]} {[%emt 00:01:58]} Nbd7 {[%clk 01:18:51]} {[%emt
00:04:20]} 11. Ng5 {[%clk 01:29:01]} {[%emt 00:01:33]} h6 {[%clk 01:06:06]}
{[%emt 00:13:14]} 12. Nxf7 {[%clk 01:22:51]} {[%emt 00:06:40]} Rxf7 {[%clk
01:00:24]} {[%emt 00:06:11]} 13. d5 {[%clk 01:23:15]} {[%emt 00:00:07]} Bc5
{[%clk 01:00:37]} {[%emt 00:00:17]} 14. dxe6 {[%clk 01:22:23]} {[%emt
00:01:22]} Bxe3+ {[%clk 01:00:23]} {[%emt 00:00:44]} 15. Kh1 {[%clk 01:22:48]}
{[%emt 00:00:05]} Re7 {[%clk 01:00:30]} {[%emt 00:00:20]} 16. exd7+ {[%clk
01:22:40]} {[%emt 00:00:41]} Kh8 {[%clk 01:00:45]} {[%emt 00:00:14]} 17. e5
{[%clk 01:20:07]} {[%emt 00:03:03]} Rxe5 {[%clk 00:56:30]} {[%emt 00:04:45]} 18.
Qg6 {[%clk 01:19:49]} {[%emt 00:00:48]} Bf2 {[%clk 00:50:59]} {[%emt 00:06:01]}
19. Nd1 {[%clk 01:09:05]} {[%emt 00:11:15]} Bh5 {[%clk 00:49:28]} {[%emt
00:02:00]} 20. Qd3 {[%clk 01:09:30]} {[%emt 00:00:06]} Be2 {[%clk 00:49:45]}
{[%emt 00:00:12]} 21. Qc3 {[%clk 01:09:03]} {[%emt 00:00:58]} Bd4 {[%clk
00:47:14]} {[%emt 00:02:59]} 22. Qd2 {[%clk 01:07:46]} {[%emt 00:01:48]} Bxf1
{[%clk 00:47:23]} {[%emt 00:00:22]} 23. Bxf1 {[%clk 01:07:52]} {[%emt
00:00:24]} Rd8 {[%clk 00:46:12]} {[%emt 00:01:41]} 24. c3 {[%clk 01:07:43]}
{[%emt 00:00:39]} Be3 {[%clk 00:45:05]} {[%emt 00:01:35]} 25. Qd6 {[%clk
01:07:32]} {[%emt 00:00:43]} Rd5 {[%clk 00:45:08]} {[%emt 00:00:26]} 26. Qe7
{[%clk 01:07:35]} {[%emt 00:00:27]} Bc5 {[%clk 00:45:17]} {[%emt 00:00:21]} 27.
Qf7 {[%clk 01:05:57]} {[%emt 00:02:10]} R5xd7 {[%clk 00:45:07]} {[%emt
00:00:38]} 0-1

[Event "Ebbe cup 42"]
[Site "Schackcentrum, Vegatan 20, Gothenburg, Sweden"]
[Date "2022.02.13"]
[Round "5.6"]
[White "Bergstrom, Assar"]
[Black "Kosmidis, Thomas"]
[Result "0-1"]
[TimeControl "90 minutes for 40 moves + 15 minutes for the rest of the game + 30 seconds per move from move one."]
[WhiteFideId "1767585"]
[BlackFideId "1753380"]
[WhiteElo "1572"]
[BlackElo "1703"]

1. e4 {[%clk 01:30:58]} {[%emt 00:00:02]} c6 {[%clk 01:30:55]} {[%emt
00:00:05]} 2. d4 {[%clk 01:31:23]} {[%emt 00:00:05]} d5 {[%clk 01:31:21]}
{[%emt 00:00:04]} 3. f3 {[%clk 01:31:49]} {[%emt 00:00:04]} e6 {[%clk
01:31:35]} {[%emt 00:00:16]} 4. Nc3 {[%clk 01:32:14]} {[%emt 00:00:05]} Nf6
{[%clk 01:31:19]} {[%emt 00:00:46]} 5. Bf4 {[%clk 01:31:44]} {[%emt 00:01:00]}
Be7 {[%clk 01:30:47]} {[%emt 00:01:02]} 6. Qd3 {[%clk 01:29:51]} {[%emt
00:02:23]} a6 {[%clk 01:29:38]} {[%emt 00:01:39]} 7. Nge2 {[%clk 01:28:08]}
{[%emt 00:02:13]} b5 {[%clk 01:25:18]} {[%emt 00:04:50]} 8. a3 {[%clk
01:20:58]} {[%emt 00:07:40]} Bb7 {[%clk 01:24:15]} {[%emt 00:01:33]} 9. Ng3
{[%clk 01:16:29]} {[%emt 00:04:59]} c5 {[%clk 01:09:09]} {[%emt 00:15:36]} 10.
dxc5 {[%clk 01:14:33]} {[%emt 00:02:26]} Bxc5 {[%clk 01:07:17]} {[%emt
00:02:22]} 11. Nxb5 {[%clk 01:10:52]} {[%emt 00:04:11]} Qa5+ {[%clk 01:01:23]}
{[%emt 00:06:21]} 12. Qc3 {[%clk 01:09:19]} {[%emt 00:02:05]} axb5 {[%clk
00:54:59]} {[%emt 00:06:55]} 13. Bxb8 {[%clk 01:02:09]} {[%emt 00:07:39]} Qxc3+
{[%clk 00:54:55]} {[%emt 00:00:34]} 14. bxc3 {[%clk 01:02:37]} {[%emt
00:00:02]} Rxb8 {[%clk 00:55:07]} {[%emt 00:00:18]} 15. Bxb5+ {[%clk 01:03:02]}
{[%emt 00:00:07]} Ke7 {[%clk 00:54:25]} {[%emt 00:01:09]} 16. exd5 {[%clk
01:03:01]} {[%emt 00:00:32]} Bxd5 {[%clk 00:48:18]} {[%emt 00:06:38]} 17. c4
{[%clk 01:02:37]} {[%emt 00:00:54]} Ba8 {[%clk 00:44:26]} {[%emt 00:04:22]} 18.
a4 {[%clk 01:01:28]} {[%emt 00:01:39]} Bb4+ {[%clk 00:42:16]} {[%emt 00:02:40]}
19. Kf2 {[%clk 01:00:38]} {[%emt 00:01:20]} Rhd8 {[%clk 00:41:15]} {[%emt
00:01:31]} 20. Nf1 {[%clk 00:59:16]} {[%emt 00:01:52]} Ba5 {[%clk 00:37:45]}
{[%emt 00:04:00]} 21. Ne3 {[%clk 00:56:52]} {[%emt 00:02:54]} Rd2+ {[%clk
00:35:16]} {[%emt 00:02:57]} 22. Kg3 {[%clk 00:57:19]} {[%emt 00:00:04]} Bc7+
{[%clk 00:34:20]} {[%emt 00:01:25]} 23. Kh3 {[%clk 00:56:46]} {[%emt 00:01:05]}
Nh5 {[%clk 00:26:43]} {[%emt 00:08:06]} 24. g3 {[%clk 00:56:01]} {[%emt
00:01:16]} Bxf3 {[%clk 00:23:26]} {[%emt 00:03:46]} 25. Rhe1 {[%clk 00:56:17]}
{[%emt 00:00:15]} Kf8 {[%clk 00:20:37]} {[%emt 00:03:19]} 26. Ra3 {[%clk
00:55:59]} {[%emt 00:00:49]} Rbd8 {[%clk 00:13:21]} {[%emt 00:07:44]} 27. a5
{[%clk 00:55:10]} {[%emt 00:01:20]} g5 {[%clk 00:12:23]} {[%emt 00:01:28]} 28.
a6 {[%clk 00:53:53]} {[%emt 00:01:47]} f5 {[%emt 00:02:15]} 29. Rg1 {[%clk
00:52:22]} g4+ {[%clk 00:09:08]} {[%emt 00:04:00]} 30. Kh4 {[%clk 00:52:39]}
{[%emt 00:00:13]} Rxh2+ {[%clk 00:08:38]} {[%emt 00:01:00]} 31. Kg5 {[%clk
00:53:08]} {[%emt 00:00:02]} Kf7 {[%clk 00:06:49]} {[%emt 00:02:18]} 0-1

[Event "Ebbe cup 42"]
[Site "Schackcentrum, Vegatan 20, Gothenburg, Sweden"]
[Date "2022.02.13"]
[Round "5.7"]
[White "Kappi, Markus"]
[Black "Larsson, Vilhelm"]
[Result "0-1"]
[TimeControl "90 minutes for 40 moves + 15 minutes for the rest of the game + 30 seconds per move from move one."]
[WhiteFideId "1762915"]
[BlackFideId "1766961"]
[WhiteElo "1211"]
[BlackElo "1360"]

1. e4 {[%clk 01:30:56]} {[%emt 00:00:03]} e5 {[%clk 01:30:51]} {[%emt
00:00:09]} 2. Nf3 {[%clk 01:31:18]} {[%emt 00:00:08]} Nc6 {[%clk 01:31:13]}
{[%emt 00:00:08]} 3. Bb5 {[%clk 01:30:31]} {[%emt 00:01:17]} a6 {[%clk
01:31:16]} {[%emt 00:00:27]} 4. Ba4 {[%clk 01:30:48]} {[%emt 00:00:13]} Nf6
{[%clk 01:31:37]} {[%emt 00:00:09]} 5. O-O {[%clk 01:30:05]} {[%emt 00:01:13]}
Be7 {[%clk 01:31:33]} {[%emt 00:00:32]} 6. Re1 {[%clk 01:30:08]} {[%emt
00:00:28]} O-O {[%clk 01:31:42]} {[%emt 00:00:21]} 7. c3 {[%clk 01:30:24]}
{[%emt 00:00:14]} b5 {[%clk 01:31:02]} {[%emt 00:01:10]} 8. Bc2 {[%clk
01:30:21]} {[%emt 00:00:34]} d5 {[%clk 01:28:41]} {[%emt 00:02:50]} 9. d4
{[%clk 01:25:26]} {[%emt 00:05:24]} Bg4 {[%clk 01:27:23]} {[%emt 00:01:48]} 10.
h3 {[%clk 01:24:05]} {[%emt 00:01:53]} Bxf3 {[%clk 01:26:11]} {[%emt 00:01:40]}
11. Qxf3 {[%clk 01:24:05]} {[%emt 00:00:30]} exd4 {[%clk 01:25:23]} {[%emt
00:01:19]} 12. exd5 {[%clk 01:22:41]} {[%emt 00:01:55]} Qxd5 {[%clk 01:22:47]}
{[%emt 00:03:04]} 13. Be4 {[%clk 01:17:21]} {[%emt 00:05:52]} Nxe4 {[%clk
01:22:47]} {[%emt 00:00:27]} 14. Rxe4 {[%clk 01:17:38]} {[%emt 00:00:14]} f5
{[%clk 01:20:32]} {[%emt 00:02:43]} 15. Rf4 {[%clk 01:14:54]} {[%emt 00:03:17]}
Qxf3 {[%clk 01:20:16]} {[%emt 00:00:45]} 16. Rxf3 {[%clk 01:14:46]} {[%emt
00:00:39]} dxc3 {[%clk 01:20:12]} {[%emt 00:00:34]} 17. Rxc3 {[%clk 01:14:45]}
{[%emt 00:00:31]} Nd4 {[%clk 01:14:32]} {[%emt 00:06:09]} 18. Kf1 {[%clk
01:13:38]} {[%emt 00:01:37]} c5 {[%clk 01:11:49]} {[%emt 00:03:11]} 19. a4
{[%clk 01:10:20]} {[%emt 00:03:52]} b4 {[%clk 01:10:49]} {[%emt 00:01:28]} 20.
Rc4 {[%clk 01:08:15]} {[%emt 00:02:36]} Rad8 {[%clk 01:08:33]} {[%emt
00:02:44]} 21. Be3 {[%clk 01:06:17]} {[%emt 00:02:30]} Nb3 {[%clk 01:07:41]}
{[%emt 00:01:22]} 22. Ra2 {[%clk 01:06:14]} {[%emt 00:00:34]} Rd1+ {[%clk
01:07:38]} {[%emt 00:00:31]} 23. Ke2 {[%clk 01:05:54]} {[%emt 00:00:52]} Rxb1
{[%clk 01:07:57]} {[%emt 00:00:10]} 24. f4 {[%clk 01:01:33]} {[%emt 00:04:52]}
Re8 {[%clk 01:07:13]} {[%emt 00:01:13]} 25. Kf2 {[%clk 01:00:43]} {[%emt
00:01:21]} Bh4+ {[%clk 01:04:52]} {[%emt 00:02:49]} 26. g3 {[%clk 01:00:12]}
{[%emt 00:01:02]} Bxg3+ {[%clk 01:03:19]} {[%emt 00:00:38]} 27. Ke2 {[%clk
00:59:06]} {[%emt 00:03:02]} Re1+ {[%clk 01:03:04]} {[%emt 00:00:42]} 0-1

[Event "Ebbe cup 42"]
[Site "Schackcentrum, Vegatan 20, Gothenburg, Sweden"]
[Date "2022.02.13"]
[Round "5.8"]
[White "Pasuphaty, Hrithish Raj"]
[Black "Hitcher, Oscar"]
[Result "1/2-1/2"]
[TimeControl "90 minutes for 40 moves + 15 minutes for the rest of the game + 30 seconds per move from move one."]
[WhiteFideId "54592380"]
[BlackFideId "1746901"]
[WhiteElo "1151"]
[BlackElo "1473"]

1. e4 {[%clk 01:30:57]} {[%emt 00:00:03]} d6 {[%clk 01:30:43]} {[%emt
00:00:17]} 2. d4 {[%clk 01:31:17]} {[%emt 00:00:11]} Nf6 {[%clk 01:31:05]}
{[%emt 00:00:09]} 3. Nc3 {[%clk 01:31:39]} {[%emt 00:00:08]} g6 {[%clk
01:31:24]} {[%emt 00:00:11]} 4. Bc4 {[%clk 01:31:53]} {[%emt 00:00:17]} Bg7
{[%clk 01:31:41]} {[%emt 00:00:13]} 5. Nf3 {[%clk 01:32:08]} {[%emt 00:00:14]}
Bg4 {[%clk 01:30:30]} {[%emt 00:01:41]} 6. O-O {[%clk 01:30:49]} {[%emt
00:01:49]} O-O {[%clk 01:30:38]} {[%emt 00:00:22]} 7. h3 {[%clk 01:30:56]}
{[%emt 00:00:22]} Be6 {[%clk 01:28:02]} {[%emt 00:03:07]} 8. Bxe6 {[%clk
01:27:57]} {[%emt 00:03:29]} fxe6 {[%clk 01:28:24]} {[%emt 00:00:08]} 9. Re1
{[%clk 01:27:21]} {[%emt 00:01:07]} c5 {[%clk 01:26:42]} {[%emt 00:02:12]} 10.
Qe2 {[%clk 01:26:29]} {[%emt 00:01:21]} cxd4 {[%clk 01:26:39]} {[%emt
00:00:33]} 11. Nxd4 {[%clk 01:26:41]} {[%emt 00:00:18]} Qd7 {[%clk 01:24:41]}
{[%emt 00:02:28]} 12. Qc4 {[%clk 01:25:57]} {[%emt 00:01:14]} d5 {[%clk
01:23:43]} {[%emt 00:01:28]} 13. exd5 {[%clk 01:26:09]} {[%emt 00:00:18]} exd5
{[%clk 01:23:36]} {[%emt 00:00:36]} 14. Qc5 {[%clk 01:25:13]} {[%emt 00:01:28]}
Nc6 {[%clk 01:23:22]} {[%emt 00:00:43]} 15. Ne6 {[%clk 01:24:59]} {[%emt
00:00:43]} Rf7 {[%clk 01:15:41]} {[%emt 00:08:11]} 16. Bg5 {[%clk 01:24:34]}
{[%emt 00:00:56]} b6 {[%clk 01:13:30]} {[%emt 00:02:41]} 17. Qb5 {[%clk
01:24:33]} {[%emt 00:00:31]} h6 {[%clk 01:11:35]} {[%emt 00:02:25]} 18. Bxf6
{[%emt 00:05:36]} Rxf6 {[%clk 01:09:52]} 19. Nxg7 {[%clk 01:21:28]} {[%emt
00:00:41]} Kxg7 {[%clk 01:09:35]} {[%emt 00:00:48]} 20. Nxd5 {[%clk 01:18:05]}
{[%emt 00:03:53]} Qf5 {[%clk 01:07:09]} {[%emt 00:02:55]} 21. Rf1 {[%clk
01:16:45]} {[%emt 00:01:51]} Rd6 {[%clk 01:04:03]} {[%emt 00:03:35]} 22. Nc7
{[%clk 01:12:34]} {[%emt 00:04:42]} Qxb5 {[%clk 00:59:44]} {[%emt 00:04:49]} 23.
Nxb5 {[%clk 01:12:29]} {[%emt 00:00:35]} Rd2 {[%clk 00:59:01]} {[%emt
00:01:12]} 24. Rfc1 {[%clk 01:12:35]} {[%emt 00:00:24]} Rf8 {[%clk 00:57:00]}
{[%emt 00:02:32]} 25. f3 {[%clk 01:12:52]} {[%emt 00:00:14]} Rf5 {[%clk
00:56:30]} {[%emt 00:00:58]} 26. Na3 {[%clk 01:09:51]} {[%emt 00:03:32]} Rg5
{[%clk 00:49:21]} {[%emt 00:07:38]} 27. g4 {[%clk 01:09:38]} {[%emt 00:00:44]}
Nd4 {[%clk 00:49:06]} {[%emt 00:00:45]} 28. Rd1 {[%clk 01:09:58]} {[%emt
00:00:10]} Nxf3+ {[%clk 00:49:05]} {[%emt 00:00:31]} 29. Kf1 {[%clk 01:09:06]}
{[%emt 00:01:22]} Rgd5 {[%clk 00:47:56]} {[%emt 00:01:38]} 30. Rxd2 {[%clk
01:07:21]} {[%emt 00:02:16]} Rxd2 {[%clk 00:46:58]} {[%emt 00:01:27]} 31. Rc1
{[%clk 01:07:11]} {[%emt 00:00:40]} Rh2 {[%clk 00:45:13]} {[%emt 00:02:14]} 32.
Rb1 {[%clk 01:07:25]} {[%emt 00:00:17]} Nd2+ {[%clk 00:42:49]} {[%emt
00:02:54]} 33. Kg1 {[%clk 01:06:23]} {[%emt 00:01:33]} Nxb1 {[%clk 00:42:42]}
{[%emt 00:00:37]} 34. Kxh2 {[%clk 01:06:40]} {[%emt 00:00:12]} Nxa3 {[%clk
00:42:54]} {[%emt 00:00:19]} 35. bxa3 {[%clk 01:06:48]} {[%emt 00:00:22]} Kf6
{[%clk 00:43:00]} {[%emt 00:00:23]} 36. Kg3 {[%clk 01:07:06]} {[%emt 00:00:12]}
Ke5 {[%clk 00:42:55]} {[%emt 00:00:36]} 37. c3 {[%clk 01:07:14]} {[%emt
00:00:22]} e6 {[%clk 00:43:02]} {[%emt 00:00:23]} 38. Kf3 {[%clk 01:07:37]}
{[%emt 00:00:07]} g5 {[%clk 00:42:36]} {[%emt 00:00:55]} 39. Ke3 {[%clk
01:07:52]} {[%emt 00:00:16]} Kd5 {[%clk 00:41:54]} {[%emt 00:01:12]} 40. Kd3
{[%clk 01:07:32]} {[%emt 00:00:50]} Ke5 {[%clk 00:40:52]} {[%emt 00:01:32]} 41.
Ke3 {[%clk 01:07:45]} {[%emt 00:00:16]} a6 {[%clk 00:40:48]} {[%emt 00:00:34]}
42. a4 {[%clk 01:08:05]} {[%emt 00:00:11]} Kd5 {[%clk 00:40:40]} {[%emt
00:00:38]} 43. Kd3 {[%clk 01:08:08]} {[%emt 00:00:26]} Kc5 {[%clk 00:39:35]}
{[%emt 00:01:35]} 44. a3 {[%clk 01:08:24]} {[%emt 00:00:15]} Kd5 {[%clk
00:38:21]} {[%emt 00:01:44]} 45. c4+ {[%clk 01:06:39]} {[%emt 00:02:15]} Kc5
{[%clk 00:38:19]} {[%emt 00:00:32]} 46. Kc3 {[%clk 01:07:03]} {[%emt 00:00:06]}
e5 {[%clk 00:34:59]} {[%emt 00:03:50]} 47. Kd3 {[%clk 01:07:04]} {[%emt
00:00:29]} a5 {[%clk 00:34:06]} {[%emt 00:01:22]} 48. Ke4 {[%clk 01:07:27]}
{[%emt 00:00:07]} Kxc4 {[%clk 00:32:40]} {[%emt 00:01:55]} 49. Kxe5 {[%clk
01:07:56]} Kb3 {[%clk 00:32:38]} {[%emt 00:00:33]} 50. Kf6 {[%clk 01:08:26]}
Kxa4 {[%clk 00:31:58]} {[%emt 00:01:10]} 51. Kg6 {[%clk 01:08:49]} {[%emt
00:00:07]} b5 {[%clk 00:31:51]} {[%emt 00:00:37]} 52. Kxh6 {[%clk 01:09:09]}
{[%emt 00:00:10]} Kxa3 {[%clk 00:32:08]} {[%emt 00:00:14]} 53. Kxg5 {[%clk
01:09:24]} {[%emt 00:00:14]} b4 {[%clk 00:32:20]} {[%emt 00:00:18]} 54. Kh6
{[%clk 01:09:43]} {[%emt 00:00:11]} b3 {[%clk 00:32:39]} {[%emt 00:00:10]} 55.
g5 {[%clk 01:09:54]} {[%emt 00:00:20]} b2 {[%clk 00:32:57]} {[%emt 00:00:12]}
56. g6 {[%clk 01:10:22]} {[%emt 00:00:01]} b1=Q {[%clk 00:33:07]} {[%emt
00:00:20]} 57. g7 {[%clk 01:10:51]} {[%emt 00:00:02]} Qc1+ {[%clk 00:32:25]}
{[%emt 00:01:11]} 58. Kh7 {[%clk 01:11:07]} {[%emt 00:00:15]} Qc3 {[%clk
00:31:48]} {[%emt 00:01:06]} 59. h4 {[%clk 01:10:54]} {[%emt 00:00:44]} Qd3+
{[%clk 00:30:22]} {[%emt 00:01:56]} 60. Kh6 {[%clk 01:11:04]} {[%emt 00:00:20]}
Qe3+ {[%clk 00:30:07]} {[%emt 00:00:44]} 61. Kg6 {[%clk 01:10:31]} {[%emt
00:01:03]} Qe4+ {[%clk 00:30:24]} {[%emt 00:00:13]} 62. Kh5 {[%clk 01:10:47]}
{[%emt 00:00:15]} Qe5+ {[%clk 00:29:24]} {[%emt 00:01:30]} 63. Kg6 {[%clk
01:10:48]} {[%emt 00:00:29]} Qg3+ {[%clk 00:29:07]} {[%emt 00:00:47]} 64. Kh5
{[%clk 01:10:24]} {[%emt 00:00:54]} Qxg7 {[%clk 00:29:25]} {[%emt 00:00:12]} 65.
Kh6 {[%clk 01:09:52]} {[%emt 00:00:26]} 1/2-1/2